fUSD/lending_fUSD_20240322
["ID","MTS","AMOUNT","RATE_DAILY","PERIOD"]
[320089640,1711146642847,-188.54060803,0.00020999,2]
[320089641,1711146642857,-3628.98444426,0.00020999,2]
[320089642,1711146642867,-712.29057264,0.00021,2]
[320089643,1711146642877,-336841.83977697,0.00021,2]
[320089644,1711146642892,-300.0,0.00021,2]
[320089645,1711146642903,-1319.00551996,0.00021,2]
[320089646,1711146642929,-1903.77658792,0.00021,2]
[320089647,1711146642941,-218547.33171801,0.00021,2]
[320089648,1711146642952,-3743.64597943,0.00021,2]
[320089649,1711146643021,-679.06343594,0.00021,2]
[320089665,1711146644246,-169.58597724,0.0001773,2]
[320089666,1711146644257,-808.20946177,0.00021,2]
[320089667,1711146644283,-169.58597723,0.000209,2]
[320089668,1711146644292,-3670.88700306,0.00021,2]
[320089669,1711146644314,-1095991.00980481,0.00021,2]
[320089670,1711146644324,-550.0,0.00021,3]
[320089671,1711146644334,-154.35482717,0.00021072,2]
[320089672,1711146644343,-2000.0,0.00021096,2]
[320089673,1711146644353,-9304.37,0.00021096,2]
[320089674,1711146644362,-2416.35896748,0.00021218,2]
[320089675,1711146644371,-159.78204036,0.00021218,2]
[320089676,1711146644380,-8616.25961806,0.00021228,2]
[320089677,1711146644390,-8893.0,0.000213,5]
[320089678,1711146644400,-1431.62240653,0.00021425,4]
[320089679,1711146644409,-402.78,0.00021444,2]
[320089680,1711146644418,-166.15011761,0.00021452,2]
[320089681,1711146644427,-154.0,0.00021556,2]
[320089682,1711146644436,-427.0,0.00021556,2]
[320089683,1711146644446,-151.0,0.00021556,2]
[320089684,1711146644455,-8616.25961806,0.00021747,2]
[320089685,1711146644464,-108442.42474954,0.00021772,2]
[320089686,1711146644536,-2040.75,0.00021772,2]
[320089701,1711146646413,-10607.30984956,0.00021772,2]
[320089702,1711146646531,-341.37345609,0.00021772,2]
[320089703,1711146646706,-500.0,0.00021772,2]
[320089704,1711147181833,-150.0,0.00025996,120]
[320089705,1711147527196,-407.12895338,0.00017723,2]
[320089706,1711147527218,-2156.92519823,0.00017724,2]
[320089707,1711147527239,-158.03430558,0.00017728,2]
[320089708,1711147527261,-322.22,0.00018199,2]
[320089709,1711147527282,-158.03430554,0.0001841,2]
[320089710,1711147527304,-158.03430554,0.00019091,2]
[320089711,1711147527327,-158.03430554,0.00019773,2]
[320089712,1711147527348,-150.0,0.00019863,2]
[320089713,1711147527370,-1415.70632521,0.00019897,2]
[320089714,1711147527395,-1342.2653704,0.00019924,2]
[320089715,1711147527421,-42920.0,0.00019926,2]
[320089716,1711147545131,-172.44225059,0.00020005,2]
[320089717,1711147630414,-827.55774941,0.00020005,2]
[320089718,1711147630435,-195.22,0.00020044,10]
[320089719,1711147630454,-499.99,0.00020044,2]
[320089720,1711147630479,-242.21,0.00020044,2]
[320089721,1711147630500,-250.0,0.00020055,2]
[320089722,1711147630520,-250.0,0.00020055,2]
[320089723,1711147630541,-288.91,0.00020069,2]
[320089724,1711147630561,-174.19,0.00020069,7]
[320089725,1711147630582,-767.0,0.000201,2]
[320089726,1711147630602,-1415.70632521,0.00020126,2]
[320089727,1711147630623,-178.94,0.00020186,2]
[320089728,1711147630644,-403.0,0.00020252,2]
[320089729,1711147630663,-155.0,0.00020252,2]
[320089730,1711147630683,-151.0,0.00020252,2]
[320089731,1711147630702,-218.92,0.00020357,2]
[320089732,1711147630727,-158.03430554,0.00020454,2]
[320089733,1711147630747,-1415.70632521,0.00020455,2]
[320089734,1711147630768,-322.22,0.00020463,2]
[320089735,1711147630787,-407.12895338,0.00020595,2]
[320089736,1711147630807,-1415.70632521,0.00020596,2]
[320089737,1711147630828,-178.94,0.00020712,2]
[320089738,1711147630848,-811.0,0.00020839,2]
[320089739,1711147630867,-656.25,0.0002088,2]
[320089740,1711147630887,-238.49898797,0.00020893,2]
[320089741,1711147630908,-4695.13339267,0.00020998,2]
[320089742,1711147630927,-1585.93280439,0.00020998,2]
[320089743,1711147630946,-2164.097004,0.00020998,2]
[320089744,1711147630965,-281.45409613,0.00020998,2]
[320089745,1711147630987,-711.75122454,0.00021,2]
[320089746,1711147631008,-550.0,0.00021,3]
[320089747,1711147631028,-1230.15967371,0.00021,2]
[320089748,1711147631048,-1415.70632521,0.00021081,2]
[320089749,1711147631067,-401.89,0.00021096,2]
[320089750,1711147631088,-2000.0,0.00021096,2]
[320089751,1711147631107,-7753.64,0.00021096,2]
[320089752,1711147631129,-158.03430554,0.00021136,2]
[320089753,1711147631150,-1415.70632521,0.00021182,2]
[320089754,1711147631170,-178.94,0.00021238,2]
[320089755,1711147631193,-1230.15967371,0.00021244,2]
[320089756,1711147631213,-1230.15967371,0.00021439,2]
[320089757,1711147631237,-1415.70632521,0.00021465,2]
[320089758,1711147631258,-403.0,0.00021583,2]
[320089759,1711147631280,-155.0,0.00021583,2]
[320089760,1711147631304,-151.0,0.00021583,2]
[320089761,1711147631324,-200.0,0.00021598,2]
[320089762,1711147631344,-800.0,0.00021598,2]
[320089763,1711147631365,-200.0,0.00021598,2]
[320089764,1711147631385,-500.0,0.00021598,2]
[320089765,1711147631406,-200.0,0.0002164,2]
[320089766,1711147631427,-200.0,0.00021682,2]
[320089767,1711147631447,-200.0,0.00021724,2]
[320089768,1711147631467,-800.0,0.00021724,2]
[320089769,1711147631490,-200.0,0.00021724,2]
[320089770,1711147631511,-500.0,0.00021724,2]
[320089771,1711147631531,-200.0,0.00021766,2]
[320089772,1711147631552,-155.0,0.00021767,2]
[320089773,1711147631574,-500.0,0.00021767,2]
[320089774,1711147631600,-500.0,0.00021767,2]
[320089775,1711147631621,-500.0,0.00021767,2]
[320089776,1711147631642,-500.0,0.00021767,2]
[320089777,1711147631663,-500.0,0.00021767,2]
[320089778,1711147631683,-458.22,0.00021767,2]
[320089779,1711147631703,-2000.0,0.00021772,2]
[320089780,1711147631724,-200.0,0.00021772,2]
[320089781,1711147631746,-1000.0,0.00021772,2]
[320089782,1711147631767,-99591.79713462,0.00021772,2]
[320089783,1711147649064,-711.09,0.00021012,2]
[320089784,1711147649086,-1132.56506017,0.00021037,2]
[320089785,1711147649107,-1132.56506017,0.00021156,2]
[320089786,1711147649128,-1132.56506017,0.00021475,2]
[320089787,1711147649149,-1230.15967371,0.00021611,2]
[320089788,1711147649170,-5190.14579303,0.00021772,2]
[320089789,1711147771664,-289.99,0.0001909,2]
[320089790,1711147813535,4559.782,0.00019926,2]
[320089813,1711147832519,-161.14,0.00020982,2]
[320089814,1711147832530,-250.0,0.00021052,2]
[320089815,1711147832539,-526.56367521,0.00021096,2]
[320089816,1711147833549,-211.17632479,0.00021096,2]
[320089817,1711147833559,-289.99,0.00021354,2]
[320089818,1711147833568,-1132.56506017,0.0002161,2]
[320089819,1711147833577,-7989.0,0.000217,5]
[320089820,1711147833586,-4222.08570287,0.00021772,2]
[320089821,1711147833595,-3140.66410374,0.00021772,2]
[320089822,1711147833623,-471516.85694457,0.00021772,2]
[320089823,1711147833634,-18168.89813934,0.00021778,2]
[320089824,1711147833645,-3307.68979252,0.00021787,2]
[320089825,1711147833654,-244.19330594,0.0002179,2]
[320089826,1711147833663,-1000.0,0.00021791,2]
[320089827,1711147833672,-1627.95537299,0.00021793,2]
[320089828,1711147833682,-96966.34742688,0.00021795,2]
[320089846,1711147837432,-12617.84862663,0.00021795,2]
[320089854,1711147837490,-372.73256249,0.00021795,2]
[320089856,1711147837503,-2119.39007438,0.00021795,2]
[320089859,1711147837515,-589295.00334077,0.00021795,2]
[320089861,1711147837525,-609.59639238,0.00021799,2]
[320089863,1711147837535,-674.05182246,0.00021799,2]
[320089864,1711147837544,-161.41931705,0.00021805,2]
[320089865,1711147837553,-200.0,0.00021807,2]
[320089866,1711147837563,-3307.68979252,0.00021815,2]
[320089867,1711147837575,-1708.4073,0.00021816,2]
[320089868,1711147837585,-6911.1388,0.00021817,2]
[320089869,1711147837596,-1000.0,0.00021817,2]
[320089870,1711147837607,-5282.44193917,0.00021817,2]
[320089871,1711147837617,-158.03430554,0.00021817,2]
[320089872,1711147837627,-966.54358701,0.00021817,2]
[320089873,1711147837640,-159.78204036,0.00021817,2]
[320089874,1711147837650,-248.47533408,0.00021817,2]
[320089875,1711147837659,-260.67457686,0.00021817,2]
[320089876,1711147837669,-160.25247239,0.00021817,2]
[320089877,1711147837678,-190.84011924,0.00021817,2]
[320089878,1711147837688,-1627.95537299,0.00021821,2]
[320089879,1711147837698,-244.19330594,0.00021822,2]
[320089880,1711147837707,-244.19330594,0.00021825,2]
[320089881,1711147837718,-263597.81761619,0.00021831,2]
[320089882,1711147837736,-2072.43069933,0.00021831,2]
[320089883,1711147837762,-655.90855187,0.00021831,2]
[320089884,1711147837792,-58032.26234527,0.00021831,2]
[320089888,1711147837812,-338.93229796,0.00021831,2]
[320090071,1711147839495,-858.97344395,0.00021817,5]
[320090073,1711147839505,-653.2134996,0.00021831,2]
[320090076,1711147839519,-7258.6256846,0.00021831,2]
[320090078,1711147839530,-684.05316431,0.00021831,2]
[320090099,1711147839833,-5495.70308544,0.00021831,2]
[320090105,1711147839878,-80047.301565,0.00021831,2]
[320090381,1711147842444,-3027.31337446,0.00021831,2]
[320090384,1711147842458,-4245.98498518,0.00021831,2]
[320090411,1711147842844,-161.41931705,0.00021805,2]
[320090413,1711147842854,-314.25327336,0.00021831,2]
[320090416,1711147842866,-1134.15842199,0.00021831,2]
[320090420,1711147842903,-3663.59527761,0.00021831,2]
[320090449,1711147845623,-13600.58593879,0.00021831,2]
[320090452,1711147845728,-746.33665963,0.00019723,2]
[320090453,1711147845738,-16850.5176643,0.00021831,2]
[320090454,1711147845749,-2746.99967536,0.00021831,2]
[320090455,1711147845802,-261.10845096,0.00021831,2]
[320090456,1711147845848,-962.30575475,0.00021831,2]
[320090457,1711147845860,-652.943206,0.00021831,2]
[320090458,1711147845912,-643.13825405,0.00021831,2]
[320090459,1711147851907,1841.7586681,0.00016373,2]
[320090460,1711147876898,1383.95186409,0.000121,30]
[320090461,1711148754125,-198.86243614,0.00017794,2]
[320090462,1711148754147,-201.87817611,0.00017795,2]
[320090463,1711148835122,-185.0,0.00017794,2]
[320090464,1711148835142,-415.55594933,0.00017795,2]
[320090465,1711148837697,260.99,0.00015887,2]
[320090474,1711149031685,-257.87661241,0.00017795,2]
[320090475,1711149031696,-477.02023514,0.00017795,2]
[320090476,1711149031706,-156.33656559,0.00017799,2]
[320090477,1711149031715,-23200.06214683,0.00017888,2]
[320090478,1711149031725,-3327.92568913,0.00017889,2]
[320090479,1711149031735,-399.09173424,0.00017898,2]
[320090480,1711149031745,-301.13756386,0.00017898,2]
[320090481,1711149031754,-1165.89163453,0.00017898,2]
[320090482,1711149031763,-1564.2884,0.00017899,2]
[320090483,1711149031773,-42257.802886,0.00017899,2]
[320090484,1711149031782,-102336.80025455,0.000179,3]
[320090485,1711149031792,-609.36,0.00017999,2]
[320090486,1711149031801,-1548.19,0.00017999,2]
[320090487,1711149031811,-622.27,0.00017999,2]
[320090488,1711149031820,-622.27,0.00017999,2]
[320090489,1711149031830,-622.27,0.00017999,2]
[320090490,1711149031840,-622.27,0.00017999,2]
[320090491,1711149031849,-622.27,0.00017999,2]
[320090492,1711149031858,-622.27,0.00017999,2]
[320090493,1711149031867,-622.27,0.00017999,2]
[320090494,1711149031878,-622.27,0.00017999,2]
[320090495,1711149031887,-622.27,0.00017999,2]
[320090496,1711149031896,-622.27,0.00017999,2]
[320090497,1711149031906,-622.27,0.00017999,2]
[320090498,1711149031915,-622.27,0.00017999,2]
[320090499,1711149031924,-622.27,0.00017999,2]
[320090500,1711149031933,-622.27,0.00017999,2]
[320090501,1711149031942,-622.27,0.00017999,2]
[320090502,1711149031952,-622.27,0.00017999,2]
[320090503,1711149031961,-622.27,0.00017999,2]
[320090504,1711149031970,-622.27,0.00017999,2]
[320090505,1711149031980,-622.27,0.00017999,2]
[320090507,1711149031990,-622.27,0.00017999,2]
[320090509,1711149031999,-622.27,0.00017999,2]
[320090511,1711149032012,-622.27,0.00017999,2]
[320090513,1711149032021,-622.27,0.00017999,2]
[320090515,1711149032031,-622.39,0.00017999,2]
[320090517,1711149032040,-128579.26154687,0.00018,2]
[320090519,1711149032051,-260.99,0.00018151,2]
[320090521,1711149032060,-175.02,0.00018392,2]
[320090523,1711149032069,-200.0,0.00018471,2]
[320090525,1711149032078,-150.99,0.00018474,2]
[320090527,1711149032088,-614.49,0.00018497,2]
[320090529,1711149032097,-710.18,0.00018516,2]
[320090531,1711149032107,-564.0,0.00018522,2]
[320090533,1711149032116,-559.94,0.00018529,2]
[320090535,1711149032128,-285.98833244,0.00018554,2]
[320090537,1711149032137,-23890.0,0.00018563,2]
[320090539,1711149032147,-458.81,0.00018603,2]
[320090541,1711149032156,-458.81,0.00018654,2]
[320090543,1711149032165,-1379.78,0.00018683,2]
[320090545,1711149032174,-458.81,0.00018705,2]
[320090547,1711149032183,-458.81,0.00018756,2]
[320090549,1711149032192,-458.81,0.00018807,2]
[320090551,1711149032202,-458.81,0.00018858,2]
[320090553,1711149032211,-458.81,0.00018909,2]
[320090555,1711149032220,-458.81,0.0001896,2]
[320090556,1711149032229,-232.34125266,0.00019,2]
[320090557,1711149032239,-29859.03,0.00019,2]
[320090558,1711149032248,-352.85,0.00019,2]
[320090560,1711149032258,-458.81,0.00019011,2]
[320090562,1711149032267,-458.81,0.00019062,2]
[320090564,1711149032276,-458.81,0.00019113,2]
[320090566,1711149032285,-458.81,0.00019164,2]
[320090568,1711149032294,-200.0,0.00019178,2]
[320090570,1711149032304,-458.81,0.00019215,2]
[320090572,1711149032313,-159.79,0.00019256,2]
[320090574,1711149032322,-458.81,0.00019266,2]
[320090576,1711149032332,-458.81,0.00019317,2]
[320090578,1711149032342,-568.88,0.0001933,2]
[320090579,1711149032351,-500.0,0.00019337,2]
[320090580,1711149032361,-458.81,0.00019368,2]
[320090581,1711149032372,-250.0,0.00019378,2]
[320090582,1711149032382,-458.81,0.00019419,2]
[320090583,1711149032391,-458.81,0.0001947,2]
[320090584,1711149032400,-458.81,0.00019521,2]
[320090585,1711149032409,-458.81,0.00019572,2]
[320090586,1711149032419,-2500.0,0.000198,2]
[320090587,1711149032428,-224.58,0.0001982,2]
[320090588,1711149032438,-431.12,0.00020285,2]
[320090589,1711149032447,-1500.0,0.000203,2]
[320090590,1711149032457,-3600.0,0.000204,2]
[320090591,1711149032466,-260.99,0.00020415,2]
[320090592,1711149032475,-191.62,0.0002049,2]
[320090593,1711149032485,-869.8892283,0.0002079,2]
[320090594,1711149032494,-869.88922829,0.0002079,2]
[320090595,1711149032504,-869.88922829,0.0002079,2]
[320090596,1711149032513,-869.88922829,0.0002079,2]
[320090597,1711149032522,-869.88922829,0.0002079,2]
[320090598,1711149032532,-1500.0,0.000208,2]
[320090599,1711149032541,-178.07557792,0.00020914,2]
[320090600,1711149032550,-5953.68644126,0.00020914,2]
[320090601,1711149032559,-317.35806859,0.00020971,2]
[320090602,1711149032569,-344.72121601,0.0002099,2]
[320090603,1711149032578,-344.72121601,0.0002099,2]
[320090604,1711149032587,-156.33656559,0.00020992,2]
[320090605,1711149032597,-345.032307,0.00020998,3]
[320090606,1711149032606,-345.032307,0.00020998,3]
[320090607,1711149032615,-345.032307,0.00020998,3]
[320090608,1711149032626,-345.032307,0.00020998,3]
[320090609,1711149032635,-345.032307,0.00020998,3]
[320090610,1711149032644,-345.032307,0.00020998,2]
[320090611,1711149032654,-345.032307,0.00020998,2]
[320090612,1711149032663,-345.032307,0.00020998,2]
[320090613,1711149032673,-345.032307,0.00020998,2]
[320090614,1711149032682,-345.032307,0.00020998,2]
[320090615,1711149032692,-154.74916081,0.00020999,2]
[320090616,1711149032701,-467.62728424,0.00020999,2]
[320090617,1711149032710,-618.31372924,0.00020999,2]
[320090618,1711149032719,-500.0,0.00020999,2]
[320090619,1711149032729,-164.71741849,0.00020999,2]
[320090620,1711149032738,-240.70078005,0.00020999,2]
[320090621,1711149032747,-534.31824323,0.00020999,2]
[320090622,1711149032757,-500.0,0.00020999,2]
[320090623,1711149032767,-286.30241893,0.00020999,2]
[320090624,1711149032777,-500.0,0.00020999,2]
[320090625,1711149032786,-500.0,0.00020999,2]
[320090626,1711149032795,-500.0,0.00020999,2]
[320090627,1711149032805,-421.23492199,0.00020999,2]
[320090628,1711149032815,-300.0,0.00020999,2]
[320090629,1711149032825,-1133.95952681,0.00020999,2]
[320090630,1711149032834,-1232.42,0.00020999,2]
[320090631,1711149032844,-1232.3,0.00020999,2]
[320090632,1711149032855,-1232.3,0.00020999,2]
[320090633,1711149032864,-584.0,0.00021,2]
[320090634,1711149032876,-837403.09797711,0.00021,2]
[320090635,1711149032890,-474.7803758,0.00021,2]
[320090636,1711149032902,-891.15199867,0.00021,2]
[320090637,1711149032913,-777.70501514,0.00021,2]
[320090638,1711149033040,-110649.29821186,0.00021,2]
[320090639,1711149033079,-1874.3666348,0.00021,2]
[320090640,1711149033091,-2243.50508395,0.00021,2]
[320090641,1711149033122,-481.21161768,0.00021,2]
[320090653,1711149037627,-250.0,0.00020825,2]
[320090655,1711149037637,-1805.72219486,0.00021,2]
[320090657,1711149037649,-719.36076778,0.00021,2]
[320090668,1711149037740,-706484.56941022,0.00021,2]
[320090670,1711149037750,-346.88279276,0.00021,2]
[320090672,1711149037760,-346.88279276,0.00021,2]
[320090674,1711149037770,-346.88279276,0.00021,2]
[320090675,1711149037781,-346.88279276,0.00021,2]
[320090676,1711149037790,-346.88279276,0.00021,2]
[320090677,1711149037799,-346.88279276,0.00021,2]
[320090678,1711149037809,-346.88279276,0.00021,2]
[320090679,1711149037819,-346.88279276,0.00021,2]
[320090680,1711149037828,-346.88279276,0.00021,2]
[320090681,1711149037838,-346.88279276,0.00021,2]
[320090682,1711149037848,-346.88279276,0.00021,2]
[320090683,1711149037857,-346.88279276,0.00021,2]
[320090684,1711149037867,-346.88279276,0.00021,2]
[320090685,1711149037878,-346.88279276,0.00021,2]
[320090686,1711149037887,-346.88279276,0.00021,2]
[320090687,1711149037897,-346.88279276,0.00021,2]
[320090688,1711149037906,-346.88279276,0.00021,2]
[320090689,1711149037920,-346.88279276,0.00021,2]
[320090690,1711149037931,-346.88279276,0.00021,2]
[320090691,1711149037941,-346.88279276,0.00021,2]
[320090692,1711149037951,-6461.36,0.00021096,2]
[320090693,1711149037960,-334.9,0.00021096,2]
[320090694,1711149037970,-559.94,0.00021269,2]
[320090695,1711149037979,-5953.68644123,0.00021295,2]
[320090696,1711149037989,-1500.0,0.000213,2]
[320090697,1711149037998,-869.88922829,0.00021446,2]
[320090698,1711149038007,-1000.0,0.000216,2]
[320090699,1711149038019,-833.33333,0.0002161,2]
[320090700,1711149038028,-161.41931705,0.00021612,2]
[320090701,1711149038038,-200.0,0.00021656,2]
[320090703,1711149038047,-500.0,0.00021656,2]
[320090705,1711149038058,-5953.68644123,0.00021676,2]
[320090707,1711149038068,-1000.0,0.000217,2]
[320090710,1711149038077,-1512.0,0.000217,2]
[320090712,1711149038087,-1000.0,0.000217,2]
[320090716,1711149038099,-1506.0,0.000217,2]
[320090719,1711149038109,-1000.0,0.000217,2]
[320090722,1711149038118,-200.0,0.00021705,2]
[320090724,1711149038129,-568.88,0.00021746,2]
[320090728,1711149038138,-200.0,0.00021753,2]
[320090730,1711149038147,-200.0,0.00021753,2]
[320090734,1711149038157,-500.0,0.00021753,2]
[320090736,1711149038167,-3580.73500386,0.00021785,2]
[320090740,1711149038177,-478.0,0.000218,4]
[320090743,1711149038187,-160.0,0.000218,2]
[320090746,1711149038198,-1000.0,0.000218,2]
[320090749,1711149038207,-1500.0,0.000218,2]
[320090752,1711149038216,-200.0,0.00021801,2]
[320090755,1711149038225,-15053.55813259,0.00021803,2]
[320090758,1711149038234,-155.0,0.00021804,2]
[320090761,1711149038244,-173.78305124,0.00021817,2]
[320090764,1711149038253,-165.65022272,0.00021817,2]
[320090766,1711149038262,-3507.1991373,0.00021817,2]
[320090770,1711149038272,-3580.73500386,0.0002182,2]
[320090773,1711149038282,-1000.0,0.00021827,2]
[320090776,1711149038291,-300.02,0.0002183,2]
[320090779,1711149038301,-2783.51314731,0.0002183,2]
[320090781,1711149038310,-234432.16924477,0.00021831,2]
[320090784,1711149038319,-2199.7066512,0.00021831,2]
[320090787,1711149038329,-200.0,0.00021831,2]
[320090791,1711149038338,-2000.0,0.00021831,2]
[320090794,1711149038347,-200.0,0.00021831,2]
[320090796,1711149038357,-15053.55813259,0.00021832,2]
[320090800,1711149038366,-609.59639238,0.00021833,2]
[320090802,1711149038377,-7347.6683245,0.00021834,2]
[320090804,1711149038387,-19960.2924548,0.00021834,2]
[320090806,1711149038396,-3568.27711167,0.00021837,2]
[320090808,1711149038404,-3580.73500386,0.00021846,2]
[320090810,1711149038413,-3568.27711167,0.00021847,2]
[320090812,1711149038422,-200.0,0.00021849,2]
[320090814,1711149038432,-200.0,0.00021849,2]
[320090816,1711149038442,-500.0,0.00021849,2]
[320090818,1711149038452,-1627.95537299,0.00021852,2]
[320090820,1711149038461,-3307.68979252,0.00021855,2]
[320090821,1711149038470,-244.19330594,0.00021861,2]
[320090824,1711149038480,-15053.55813259,0.00021863,2]
[320090826,1711149038490,-418359.86940571,0.00021867,2]
[320090840,1711149038615,-1301.20799578,0.00021867,2]
[320090842,1711149038628,-290.08119832,0.00021867,2]
[320090844,1711149038639,-40249.12179473,0.00021867,2]
[320090847,1711149038651,-4547.21032107,0.00021867,2]
[320090849,1711149038663,-19599.21,0.00021867,2]
[320090851,1711149038675,-5313.6990875,0.00021867,2]
[320090853,1711149038687,-16402.27879,0.00021867,2]
[320090856,1711149038698,-13776.6972465,0.00021867,2]
[320090858,1711149038710,-27604.04831325,0.00021867,2]
[320090860,1711149038721,-22743.24876,0.00021867,2]
[320090865,1711149038763,-376.44100055,0.000209,2]
[320090867,1711149038772,-878.04207727,0.00021867,2]
[320090962,1711149039765,-1870.53815802,0.00021867,2]
[320090966,1711149039787,-328.9,0.00021867,2]
[320090968,1711149039799,-302.0,0.00021867,2]
[320090971,1711149039811,-18363.57938118,0.00021867,2]
[320090975,1711149039846,-3120.41209978,0.00021867,2]
[320090982,1711149039902,-962.68837989,0.00021867,2]
[320090985,1711149039914,-783.27247805,0.00021867,2]
[320090987,1711149039926,-344.0,0.00021867,2]
[320090998,1711149040025,-9534.2611058,0.00021867,2]
[320091001,1711149040037,-259.05,0.00021867,2]
[320091195,1711149042610,-2831.34832828,0.00021867,2]
[320091196,1711149042671,-64000.0,0.00021867,2]
[320091197,1711149042683,-8270.42298324,0.00021867,2]
[320091198,1711149042695,-542.18325069,0.00021867,2]
[320091199,1711149042725,-1146.16349098,0.00021867,2]
[320091200,1711149042743,-544.10587771,0.00021867,2]
[320091201,1711149042837,-645.2,0.00021867,2]
[320091202,1711149042849,-458.87608,0.00021867,2]
[320091203,1711149042897,-15999.6054274,0.00021867,2]
[320091204,1711149042907,-609.59639238,0.00021869,2]
[320091205,1711149042917,-609.59639238,0.0002187,2]
[320091206,1711149042926,-482.24122294,0.00021876,2]
[320091207,1711149042939,-17686.6569164,0.00021876,2]
[320091208,1711149042949,-1468.98891422,0.00021876,2]
[320091209,1711149042963,-581.30791516,0.00021876,2]
[320091210,1711149042975,-1115.54818347,0.00021876,2]
[320091211,1711149042988,-414.88999101,0.00021876,2]
[320091212,1711149042998,-2359.34802651,0.00021877,2]
[320091213,1711149043012,-4500.77841188,0.00021877,2]
[320091214,1711149043024,-3204.95102921,0.00021877,2]
[320091215,1711149043038,-316.220239,0.00021877,2]
[320091216,1711149043071,-2222.7699996,0.00021877,2]
[320091217,1711149045708,-5564.83043314,0.00021877,2]
[320091218,1711149045719,-532.68756607,0.00021878,2]
[320091219,1711149045734,-2650.0,0.00021878,2]
[320091220,1711149045765,-630.0,0.00021878,2]
[320091221,1711149045823,-1134.13449414,0.00021878,2]
[320091245,1711149046470,-12671.3749905,0.00021878,2]
[320091249,1711149046491,-550.70108863,0.00021878,2]
[320091251,1711149046501,-2181.65891137,0.00021881,2]
[320091256,1711149046542,-1386.6182003,0.00021881,2]
[320091258,1711149046551,-3568.27711167,0.00021887,2]
[320091260,1711149046561,-1627.95537299,0.00021891,2]
[320091262,1711149046571,-3307.68979252,0.00021898,2]
[320091264,1711149046580,-15053.55813259,0.00021898,2]
[320091266,1711149046589,-207.93224359,0.000219,2]
[320091267,1711149046599,-344.72121601,0.00021907,2]
[320091268,1711149046608,-345.032306,0.00021914,2]
[320091269,1711149046618,-345.032307,0.00021914,2]
[320091270,1711149046627,-345.032307,0.00021914,2]
[320091271,1711149046640,-345.032307,0.00021914,2]
[320091272,1711149046649,-345.032307,0.00021914,2]
[320091273,1711149046658,-345.032307,0.00021914,2]
[320091274,1711149046667,-345.032307,0.00021914,2]
[320091275,1711149046677,-345.032307,0.00021914,3]
[320091276,1711149046686,-345.032307,0.00021914,3]
[320091277,1711149046695,-345.032307,0.00021914,3]
[320091278,1711149046704,-345.032307,0.00021914,3]
[320091279,1711149046714,-345.032307,0.00021914,3]
[320091280,1711149046723,-345.032307,0.00021914,3]
[320091281,1711149046732,-345.032307,0.00021914,3]
[320091282,1711149046742,-345.032307,0.00021914,3]
[320091283,1711149046751,-345.032307,0.00021914,3]
[320091284,1711149046761,-345.032307,0.00021914,3]
[320091285,1711149046770,-345.032307,0.00021914,3]
[320091286,1711149046779,-345.032307,0.00021914,3]
[320091287,1711149046789,-345.032307,0.00021914,3]
[320091288,1711149046798,-185.61333922,0.00021914,2]
[320091289,1711149046807,-1093.86670843,0.00021914,2]
[320091290,1711149046817,-572.04464527,0.00021914,2]
[320091291,1711149046827,-172.71182598,0.00021914,2]
[320091292,1711149046837,-298.51732397,0.00021914,2]
[320091293,1711149046847,-337.86639598,0.00021914,2]
[320091294,1711149046856,-1141.48645998,0.00021915,2]
[320091295,1711149046865,-214.5273441,0.00021915,2]
[320091296,1711149046875,-1053.13673053,0.00021915,2]
[320091297,1711149046886,-164.87933758,0.00021915,2]
[320091298,1711149046895,-2159.27888789,0.00021916,2]
[320091299,1711149046904,-315.16164096,0.00021917,2]
[320091300,1711149046913,-500.0,0.00021917,2]
[320091301,1711149046922,-500.0,0.00021917,2]